Cogmind - Beta 16.1 @@@ ROGUE MODE // 2026.03.09 @ 22:38:01 Player: FL-IST Result: Destroyed by Striker with Compact Linear Accelerator Performance ------------- Evolutions (8) 4000 Regions Visited (27) 5400 Robots Destroyed (521) 2605 Value Destroyed (28347) 28347 Prototype IDs (43) 860 Alien Tech Used (0) 0 Bonus (18453) 18453 TOTAL SCORE: 59665 Bonus ------- Triggered Max Security 1000 High Alert Combat Kills 8300 Follower Combat Kills 2253 Entered Garrisons 1600 Used RIF Installer 4500 Aligned with FarCom 300 Scanned by Researcher 500 Cogmind --------- Core Integrity 0/1450 Matter 300/300 Energy 100/100 System Corruption 18% Temperature Cool (0) Movement Core (50) Location -2/Quarantine Parts ------- > --- POWER (2) -------- (None) > --- PROPULSION (4) --- (None) > --- UTILITY (13) ----- (None) > --- WEAPON (4) ------- (None) > --- INVENTORY (5) ---- Armored Heavy Treads Centrium Heavy Armor Plating Peak State ------------ > --- POWER ------------ Light Quantum Reactor Light Quantum Reactor > --- PROPULSION ------- Improved Heavy Treads Armored Heavy Treads > --- UTILITY ---------- Advanced Cooling System High-capacity Storage Unit Advanced Targeting Computer Experimental Target Analyzer Core Analyzer Experimental Core Analyzer Advanced Kinecellerator Advanced Weapon Cycler Advanced Weapon Cycler Centrium Heavy Armor Plating Advanced Powered Armor Advanced Force Field > --- WEAPON ----------- XL Autogun Array > --- INVENTORY -------- Heavy Treads Armored Heavy Treads Advanced Cooling System Improved Matter Compressor Advanced Powered Armor Experimental Shield Generator Advanced Force Field Relay Coupler [NC] Relay Coupler [Proto] Long-range Tractor Beam KE Penetrator KE Penetrator KE Penetrator KE Penetrator Railgun Advanced Micro-nuke Launcher Advanced Remote Datajack Impact Mace [Rating: 189] Favorites ----------- Power Light Quantum Reactor Engine Improved Ion Engine Power Core Fission Core Reactor Light Quantum Reactor Propulsion Light Treads Treads Light Treads Wheel Armored Wheel Flight Unit Cesium-ion Thruster Utility High-capacity Storage Unit Device Advanced Cooling System Storage High-capacity Storage Unit Processor Advanced Targeting Computer Hackware Improved Hacking Suite Protection Improved Medium Armor Plating Weapon Gauss Rifle Energy Gun Small Laser Ballistic Gun Gauss Rifle Ballistic Cannon Bore Cannon Launcher Rocket Launcher Special Weapon Remote Datajack Impact Weapon Impact Mace Slashing Weapon Power Sword Build | -11 -10 -10 -10 -9 -8 -8 -8 -7 -7 -7 -7 -6 -6 -6 -6 -6 -6 -5 -5 -4 -4 -3 -3 -2 -2 -2 -2 ------- Run | Yrd Mat Min Exi Min Mat Gar Mat Fac Gar Fac Gar Fac Ext Cet Arc Hub Gar Fac Gar Fac Gar Res Gar Res Gar Res Qua Slots Evolved 16 | . . . . . 4 . . 2 . . . 2 . . . . . 2 . 2 . 2 . 2 . . . Power 1 | . . . . . . . . . . . . . . . . . . . . . . 1 . . . . . Propulsion 2 | . . . . . 1 . . . . . . 1 . . . . . . . . . . . . . . . Utility 11 | . . . . . 1 . . 2 . . . 1 . . . . . 2 . 2 . 1 . 2 . . . Weapon 2 | . . . . . 2 . . . . . . . . . . . . . . . . . . . . . . Parts Attached 281 | 7 12 2 . 1 19 18 2 5 11 27 8 11 17 1 8 4 16 7 18 8 16 10 19 16 7 6 5 Power 25 | 1 3 . . . 1 2 . . . 1 . 2 2 . . 1 1 2 1 . 1 2 . 3 . 2 . Engine 13 | 1 3 . . . 1 2 . . . 1 . 2 1 . . 1 1 . . . . . . . . . . Core 5 | . . . . . . . . . . . . . 1 . . . . 2 1 . . 1 . . . . . Reactor 7 | . . . . . . . . . . . . . . . . . . . . . 1 1 . 3 . 2 . Propulsion 60 | 2 2 1 . . 5 7 1 . 4 7 4 5 3 . 3 . 4 . 6 . 1 . 1 2 1 . 1 Treads 55 | 1 1 1 . . 5 7 1 . 4 6 4 5 3 . 3 . 4 . 6 . 1 . 1 1 1 . . Leg . | . . . . . . . . . . . . . . . . . . . . . . . . . . . . Wheel 4 | 1 1 . . . . . . . . 1 . . . . . . . . . . . . . 1 . . . Hover . | . . . . . . . . . . . . . . . . . . . . . . . . . . . . Flight 1 | . . . . . . . . . . . . . . . . . . . . . . . . . . . 1 Utility 110 | 2 3 . . 1 6 3 1 3 2 8 1 2 8 . 3 2 7 4 5 8 6 5 16 8 2 3 1 Device 52 | 1 2 . . . 1 1 1 1 . 5 . 1 3 . 1 . 5 2 2 5 2 2 11 4 1 1 . Storage 8 | 1 1 . . . 1 . . . . . . . . . . 1 . 1 . 1 . 2 . . . . . Processor 10 | . . . . . 1 . . 2 . . . 1 . . . . . . . . 1 . 2 2 . 1 . Hackware 18 | . . . . . 2 . . . 1 1 . . 2 . 1 1 1 1 2 2 1 1 . . . 1 1 Protection 22 | . . . . 1 1 2 . . 1 2 1 . 3 . 1 . 1 . 1 . 2 . 3 2 1 . . Artifact . | . . . . . . . . . . . . . . . . . . . . . . . . . . . . Weapon 86 | 2 4 1 . . 7 6 . 2 5 11 3 2 4 1 2 1 4 1 6 . 8 3 2 3 4 1 3 Energy Gun 5 | 1 . . . . . . . . . . . . . . 2 . . . 2 . . . . . . . . Energy Cannon . | . . . . . . . . . . . . . . . . . . . . . . . . . . . . Ballistic Gun 67 | 1 4 1 . . 6 5 . 1 3 10 3 . 4 . . 1 3 1 4 . 7 2 2 3 4 1 1 Ballistic Cannon 2 | . . . . . . 1 . 1 . . . . . . . . . . . . . . . . . . . Launcher 4 | . . . . . 1 . . . . . . 1 . . . . 1 . . . . 1 . . . . . Special Weapon 4 | . . . . . . . . . 1 1 . . . . . . . . . . 1 . . . . . 1 Impact Weapon 3 | . . . . . . . . . 1 . . 1 . 1 . . . . . . . . . . . . . Slashing Weapon 1 | . . . . . . . . . . . . . . . . . . . . . . . . . . . 1 Piercing Weapon . | . . . . . . . . . . . . . . . . . . . . . . . . . . . . Special Melee Weapon . | . . . . . . . . . . . . . . . . . . . . . . . . . . . . Unidentified Prototypes 20 | . . . . . . . . . . 1 . 1 . . 1 . . 2 1 . . 3 3 5 . 2 1 Parts Lost 82 | . 1 . . . 1 10 1 2 6 8 . . 1 7 1 4 4 1 3 1 2 . 1 1 3 3 21 Power 7 | . 1 . . . . 1 . . . 1 . . . . . 1 . . . . . . . . . 1 2 Propulsion 22 | . . . . . 1 2 . . 4 4 . . . 3 1 2 1 . 1 . . . . . . . 3 Utility 30 | . . . . . . 2 . 1 1 1 . . 1 2 . . 3 1 1 1 1 . . . 2 2 11 Weapon 23 | . . . . . . 5 1 1 1 2 . . . 2 . 1 . . 1 . 1 . 1 1 1 . 5 Highest Loss Streak 19 | . 1 . . . 1 3 1 1 4 3 . . 1 7 1 4 1 1 2 1 2 . 1 1 1 1 19 To Critical Strikes 3 | . . . . . . . . . . . . . . 3 . . . . . . . . . . . . . Average Backups 15 | 3 13 14 13 11 12 16 17 14 16 16 17 15 16 16 15 15 16 16 16 14 14 14 14 14 16 16 12 Power . | . . . . . . . . . . . . . . . . . . . . . . . . . . . . Propulsion 2 | 1 5 6 3 2 3 2 3 3 1 1 2 1 2 2 . 1 2 3 2 2 2 2 2 1 1 2 2 Utility 7 | . 5 6 6 4 5 8 10 8 9 9 9 8 8 8 7 7 8 9 8 8 7 7 7 8 8 7 6 Weapon 4 | . 2 2 3 4 4 5 3 3 6 5 5 5 5 5 5 5 4 3 3 3 3 4 3 3 5 5 3 Tool/Special . | . . . . . . . . . . . . . . . . . . . . . . . . . . . . Unused Backups 51 | . 8 3 4 3 1 6 1 1 2 3 1 . . . . . 4 1 6 . 1 . 1 1 2 . 2 Power 1 | . . . . . . . . . . . . . . . . . . . . . 1 . . . . . . Propulsion 16 | . 3 1 4 . . 1 . . 1 . . . . . . . 3 1 1 . . . . . . . 1 Utility 21 | . . 1 . 2 . 5 1 . 1 1 1 . . . . . 1 . 5 . . . 1 1 . . 1 Weapon 11 | . 4 1 . 1 1 . . 1 . 1 . . . . . . . . . . . . . . 2 . . Tool/Special 2 | . 1 . . . . . . . . 1 . . . . . . . . . . . . . . . . . Average Slot Usage (%) 92 | . 97 100 100 100 98 97 100 93 96 96 99 99 99 68 83 94 90 86 88 87 88 89 89 89 78 77 78 Engine 4 | . 12 14 14 14 9 8 9 7 7 5 7 6 . . . 2 6 . . . . . . . . . . Core 1 | . . . . . . . . . . . . . 5 6 6 2 . 4 4 5 4 3 . . . . . Reactor 1 | . . . . . . . . . . . . . . . . . . . . . . 4 9 8 8 7 7 Treads 17 | . 14 15 28 28 26 26 27 23 20 20 23 25 26 10 17 22 19 11 12 10 9 9 9 7 8 8 6 Wheel 1 | . 14 12 . . . . . . . . . . . . . . . . . . . . . . . . . Device 14 | . 14 14 14 . 2 8 9 2 5 8 15 13 12 7 8 11 12 20 15 16 20 18 25 26 24 27 20 Storage 6 | . 14 14 14 14 9 9 9 7 7 7 7 6 6 6 6 6 6 5 5 5 5 4 4 4 4 4 3 Processor 9 | . . . . . 6 . . 14 15 10 7 13 13 13 13 13 13 11 11 10 10 9 9 15 17 17 15 Hackware 2 | . . . . . . . . . 1 2 . . . . . . . 1 5 11 10 13 5 4 . . 3 Protection 5 | . . . . 13 8 8 9 7 7 6 7 6 6 1 4 6 5 4 4 5 5 4 3 3 7 5 4 Ballistic Gun 21 | . 25 28 28 28 34 31 27 20 20 25 27 23 25 15 19 24 22 22 18 19 18 17 17 16 6 4 12 Peak Build Rating 189 | 7 12 12 14 14 29 38 36 44 44 54 55 59 65 65 62 60 85 94 103 106 117 130 157 172 189 187 171 Average Rating 75 | 5 10 11 12 14 25 34 34 39 39 40 52 57 62 45 51 57 67 91 90 102 110 125 141 168 183 184 149 On Entrance 68 | . 7 11 11 14 14 28 36 29 44 38 51 53 58 65 41 55 59 85 93 98 100 115 129 157 170 187 171 Avg Prop Armor Cover (%) 7 | 12 8 5 . . . . . . . 6 . . . . . . . . . 9 . . . . . . . Naked Turns 16 | . . . . . . . . . . . . . . . . . . . . . . . . . . . 16 Heaviest Build 154 | 12 30 30 30 32 68 77 76 77 77 79 79 82 83 83 80 80 84 85 90 95 105 129 132 141 154 143 134 Greatest Support 150 | 20 20 40 40 40 63 60 60 60 60 68 68 96 106 106 86 86 140 140 150 150 150 150 150 135 135 135 135 Greatest Overweight (x) 3 | 1 2 1 . . 1 1 1 1 1 3 1 1 . 3 3 1 1 . 1 1 . . . 1 1 1 1 Average Overweight (x) . | . 1 . . . . . 1 1 . 1 . . . 2 . . . . . . . . . . . . . Largest Inventory Capacity 20 | 8 15 15 15 15 20 20 20 20 20 20 20 20 20 20 20 20 20 20 20 20 20 20 20 20 20 20 20 Average Capacity 19 | 7 14 15 15 15 17 20 20 20 20 20 20 20 20 20 20 20 20 20 20 20 20 20 20 20 20 20 18 Most Carried 20 | 5 15 15 15 15 20 20 20 20 20 20 20 20 20 20 20 20 20 20 20 20 20 20 20 20 20 20 20 Average Carried 18 | 3 13 14 14 14 15 19 20 17 19 19 19 18 19 19 18 18 19 19 19 19 19 19 19 19 19 19 17 Final Capacity 20 | 8 15 15 15 15 20 20 20 20 20 20 20 20 20 20 20 20 20 20 20 20 20 20 20 20 20 20 5 Final Carried 20 | 5 15 15 15 13 20 20 20 20 18 20 20 20 20 20 19 20 20 20 20 20 20 20 20 20 20 20 4 Class Distribution -------------------- 49% | Scavenger-Gunner 15% | Scavenger-Skirmisher 11% | Mutant 10% | Scavenger-Tank 6% | Bothacker-Tank Dominant Class ---------------- Mutant | -10/Materials Mutant | -10/Mines Mutant | -10/Exiles Mutant | -9/Mines Scavenger-Skirmisher | -8/Materials Scavenger-Skirmisher | -8/Garrison Scavenger-Skirmisher | -8/Materials Scavenger-Gunner | -7/Factory Scavenger-Gunner | -7/Garrison Scavenger-Tank | -7/Factory Scavenger-Tank | -7/Garrison Scavenger-Gunner | -6/Factory Scavenger-Gunner | -6/Extension Scavenger-Mutant | -6/Cetus Scavenger-Gunner | -6/Archives Scavenger-Gunner | -6/Hub_04(d) Scavenger-Gunner | -6/Garrison Scavenger-Gunner | -5/Factory Scavenger-Tank | -5/Garrison Bothacker-Tank | -4/Factory Bothacker-Gunner | -4/Garrison Bothacker-Tank | -3/Research Scavenger-Gunner | -3/Garrison Scavenger-Gunner | -2/Research Scavenger-Gunner | -2/Garrison Scavenger-Gunner | -2/Research Scavenger-Gunner | -2/Quarantine Resources | -11 -10 -10 -10 -9 -8 -8 -8 -7 -7 -7 -7 -6 -6 -6 -6 -6 -6 -5 -5 -4 -4 -3 -3 -2 -2 -2 -2 ----------- Run | Yrd Mat Min Exi Min Mat Gar Mat Fac Gar Fac Gar Fac Ext Cet Arc Hub Gar Fac Gar Fac Gar Res Gar Res Gar Res Qua Matter Collected 24110 | 303 389 127 . 136 951 1732 205 455 586 1858 816 918 1015 1 427 514 1110 897 1209 738 1154 844 1247 1098 2941 1203 1236 Remotely 4190 | . . . . . . . . . . 58 . 629 49 . 72 172 120 293 . 110 261 . 305 198 816 259 848 Salvage Created 30024 | 116 699 68 . 146 1516 1772 409 538 423 2134 915 872 994 35 427 444 1050 1219 1758 846 865 437 1997 3214 3953 2228 949 Parts 1373 | 7 47 3 . 10 68 91 26 25 27 95 40 49 50 1 14 20 57 59 77 44 54 19 79 118 155 99 39 Haulers Intercepted 24 | . 2 . . . 2 . 1 . . 3 . 2 . . . . . 4 . . . 1 . 7 . 2 . Recyclers Shooed 15 | 1 . . . 1 3 . 1 1 . 4 . 1 1 . . . . 1 . . . . . 1 . . . Parts Field Recycled . | . . . . . . . . . . . . . . . . . . . . . . . . . . . . Retrieved Matter . | . . . . . . . . . . . . . . . . . . . . . . . . . . . . Parts Self-Destructed . | . . . . . . . . . . . . . . . . . . . . . . . . . . . . Prevented . | . . . . . . . . . . . . . . . . . . . . . . . . . . . . Parts Restored . | . . . . . . . . . . . . . . . . . . . . . . . . . . . . Kills | -11 -10 -10 -10 -9 -8 -8 -8 -7 -7 -7 -7 -6 -6 -6 -6 -6 -6 -5 -5 -4 -4 -3 -3 -2 -2 -2 -2 ------- Run | Yrd Mat Min Exi Min Mat Gar Mat Fac Gar Fac Gar Fac Ext Cet Arc Hub Gar Fac Gar Fac Gar Res Gar Res Gar Res Qua Combat Hostiles Destroyed 389 | . 17 . . 2 18 40 6 8 16 25 16 13 10 4 4 5 17 14 14 6 14 4 32 24 46 20 14 Melee 1 | . . . . . . . . . . 1 . . . . . . . . . . . . . . . . . Guns 348 | . 17 . . 2 18 29 3 3 10 24 16 10 9 3 3 5 17 14 14 6 14 4 26 24 46 20 11 Cannons 15 | . . . . . . 6 1 5 3 . . . . . . . . . . . . . . . . . . AOE 23 | . . . . . . 5 2 . 3 . . 3 1 . . . . . . . . . 6 . . . 3 Classes Destroyed 21 | 2 6 1 . 1 2 3 . . . . . 1 1 . . . 2 . . . . . 1 . . . 1 Worker 9 | . . 1 . . . . . 1 . 2 . . . . . . . . . . . . . 2 . 3 . Builder 17 | . . . . . 1 . . . . 6 . 3 1 . . . . . . . . . . 4 . 2 . Tunneler 5 | 2 . . . 1 . . 1 . . . . 1 . . . . . . . . . . . . . . . Hauler 24 | . 2 . . . 2 . 1 . . 3 . 2 . . . . . 4 . . . 1 . 7 . 2 . Recycler 31 | 1 . 1 . 1 6 . 2 2 . 8 . . 2 . . . . . . 3 . . . 3 . 2 . Mechanic 1 | . 1 . . . . . . . . . . . . . . . . . . . . . . . . . . Operator 14 | . 1 . . . 1 . . . . 1 . . 1 . 4 5 . . . . . . . . . 1 . Watcher 26 | . 3 . . . 1 . . 1 . 1 1 1 3 1 . . . 2 . 1 . 1 1 4 . 5 . Swarmer 51 | . 6 . . . . 4 3 . 10 3 1 . 2 . . . 1 5 1 . 4 . 7 4 . . . Cutter 9 | . . . . . . . . . . . . . . . . . 4 . . . 2 . 3 . . . . Saboteur 2 | . . . . . . . . . . . . . . . . . . . . . . . . . . . 2 Grunt 142 | . 11 . . 1 12 17 2 5 1 9 7 8 3 . . 1 3 3 7 1 . . 13 4 26 3 5 Brawler 14 | . . . . . . 3 . . . . 3 1 . . . . . . 1 . . 1 1 . 1 . 3 Duelist 11 | . . . . 1 . 1 . 1 . 2 . 1 . . . . 1 . . . . 1 . . . . 3 Protector 2 | . . . . . . . . . . . . 1 . . . . . . . . . . . . . . 1 Sentry 56 | . . . . . 6 7 1 . 2 5 4 1 1 . 4 1 5 1 1 . 2 . 2 1 9 3 . Specialist 5 | . . . . . . . . . . . . . . . . . 1 . . 2 . . . . 2 . . Hunter 32 | . . . . . . 4 . . . . . . 2 . . 2 . . 3 . . 1 3 11 4 2 . Programmer 55 | . . . . . . 5 . 2 3 6 1 1 1 . . 1 1 5 . 3 5 1 . 5 3 12 . Behemoth 9 | . . . . . . . . . . . . . 1 . . . 1 1 1 . 1 . 3 . 1 . . Cetus Guard 4 | . . . . . . . . . . . . . . 4 . . . . . . . . . . . . . Executioner 1 | . . . . . . . . . . . . . . . . . . . . . . . 1 . . . . Savage 1 | . . . . . . . . . . . . . 1 . . . . . . . . . . . . . . Best Kill Streak 14 | 2 3 1 . 2 6 5 3 5 6 6 4 9 2 4 2 2 5 3 7 2 4 2 4 11 4 7 14 Combat Bots Only 14 | . 3 . . 2 5 5 3 4 6 2 4 8 2 3 2 2 5 3 7 2 4 2 4 6 4 4 14 Max Kills in Single Turn 4 | 1 2 1 . 1 2 3 2 2 2 2 2 4 2 2 1 1 2 2 2 1 2 1 3 2 2 2 3 Gunslinging 1 | . 1 . . . . . . . . . . 1 . 1 . . 1 1 1 . 1 . 1 1 1 . . Exploded 3 | . . . . . . 3 2 . 2 . . 2 1 . . . . . . . . . 2 . . . 3 Melee 1 | . . . . . . . . . . 1 . . . . . . . . . . . . . . . . . Uniques/NPCs Destroyed . | . . . . . . . . . . . . . . . . . . . . . . . . . . . . Combat | -11 -10 -10 -10 -9 -8 -8 -8 -7 -7 -7 -7 -6 -6 -6 -6 -6 -6 -5 -5 -4 -4 -3 -3 -2 -2 -2 -2 -------- Run | Yrd Mat Min Exi Min Mat Gar Mat Fac Gar Fac Gar Fac Ext Cet Arc Hub Gar Fac Gar Fac Gar Res Gar Res Gar Res Qua Hostile Shots Fired 2160 | . 58 4 . 18 75 129 35 21 150 222 133 63 63 65 22 74 92 31 103 61 74 14 71 109 167 55 251 Missed 613 | . 11 . . 6 12 25 16 3 50 63 48 22 25 17 8 21 38 9 25 16 16 5 29 29 36 12 71 Hits 1547 | . 47 4 . 12 63 104 19 18 100 159 85 41 38 48 14 53 54 22 78 45 58 9 42 80 131 43 180 Melee 36 | . . . . 5 . 4 2 . . . 1 1 . . . . 3 . 1 . 2 2 . . . . 15 Projectile 1511 | . 47 4 . 7 63 100 17 18 100 159 84 40 38 48 14 53 51 22 77 45 56 7 42 80 131 43 165 AOE 7 | . . . . . . . . . . 1 . . . . . . 3 . . . 1 . 1 . . . 1 Critical Strikes 73 | . 1 1 . . 2 8 1 1 2 3 . 3 . 8 1 1 2 1 2 2 3 . 2 2 6 5 16 Part Disruptions 3 | . . . . . . . . . . 1 . . . . . . . . . 1 . . . . 1 . . Damage Taken 23241 | . 604 63 . 246 1002 1719 288 339 1210 1568 528 455 447 1135 329 780 683 396 1106 614 968 136 510 1149 1843 708 4415 Core 2779 | . 105 14 . 35 70 205 . 14 161 159 42 65 30 57 23 53 49 33 81 43 40 22 11 13 99 44 1311 Absorbed by Shields 4754 | . . . . . . 27 . . . 165 228 172 174 127 . . . 24 348 283 309 117 534 571 1077 364 234 Reduced by Siege Mode 510 | . . . . . . . . . . . . . . . . . . . 20 24 83 . 19 103 77 6 178 Core Remaining (%) 72 | 100 . . . 38 . . 50 . . . 46 . . . . . 67 . 88 . 92 . 97 . . . . Volleys Fired 1275 | 11 55 4 . 18 59 128 11 23 46 84 62 27 53 12 17 16 51 39 60 22 44 21 87 69 132 75 49 Largest 4 | 2 2 2 . 2 4 4 4 4 4 4 4 4 4 4 4 4 4 4 4 4 4 4 4 4 4 2 4 Hottest 141 | 60 60 46 . 46 94 129 129 141 141 112 112 123 123 123 112 112 126 126 119 119 126 129 138 138 136 70 140 Shots Fired 3575 | 22 110 8 . 36 219 350 41 87 123 279 165 106 185 40 41 58 147 156 197 74 147 54 254 270 244 79 83 Gun 3324 | 22 110 8 . 36 218 299 33 61 95 271 143 103 175 33 35 58 136 156 188 70 141 48 229 270 240 79 67 Cannon 100 | . . . . . . 48 7 26 19 . . . . . . . . . . . . . . . . . . Launcher 32 | . . . . . 1 3 1 . 4 . . 3 1 7 . . 1 . . . . . 5 . 4 . 2 Special 119 | . . . . . . . . . 5 8 22 . 9 . 6 . 10 . 9 4 6 6 20 . . . 14 Kinetic 3395 | 11 93 8 . 36 218 347 40 87 114 271 143 103 175 33 35 58 136 156 187 70 141 48 229 270 240 79 67 Thermal 29 | 11 17 . . . . . . . . . . . . . . . . . 1 . . . . . . . . Explosive 32 | . . . . . 1 3 1 . 4 . . 3 1 7 . . 1 . . . . . 5 . 4 . 2 Electromagnetic . | . . . . . . . . . . . . . . . . . . . . . . . . . . . . Robot Hit Streak 46 | 4 14 3 . 4 26 25 9 12 21 18 26 14 22 23 19 10 14 24 35 12 20 22 46 12 28 16 38 Robot Miss Streak 7 | 3 7 3 . 6 5 6 2 5 2 4 2 3 4 2 1 4 4 3 3 1 3 2 1 5 4 6 3 Penetration Max 3 | . . . . . . 3 . 1 1 1 1 1 1 1 1 1 1 1 1 1 1 1 1 1 2 . 2 Secondary Targets 48 | . 3 . . . 2 2 . . 1 2 2 1 . 1 . 2 3 3 4 . 4 . 3 7 6 . 2 Max Gunslinging Chain 2 | . 1 . . . 1 1 . . 1 1 1 1 . 1 . 1 2 1 1 . 1 . 1 2 1 . 1 Shots Hit Robots 2356 | 13 84 5 . 25 138 193 23 45 84 180 90 62 123 35 40 44 98 92 150 51 104 40 171 160 163 66 77 Core Hits 1235 | 4 44 4 . 9 65 82 14 20 35 80 39 48 43 27 16 18 38 42 71 21 39 21 79 96 141 74 65 Critical Kills 37 | . . . . . . 5 2 3 2 2 . 1 1 . . . 2 . 2 2 . . . 9 6 . . Critical Parts Destroyed 74 | . . . . . 4 11 1 4 3 7 3 . 2 2 2 3 2 2 1 1 . 2 3 10 9 . 2 Critical Strikes 121 | . . . . . 4 16 3 7 6 9 3 1 3 2 3 3 4 2 4 3 . 2 6 19 17 . 4 Destroy 106 | . . . . . 4 16 3 7 5 4 3 1 3 1 1 2 3 2 2 1 . 2 6 19 17 . 4 Blast 1 | . . . . . . . . . 1 . . . . . . . . . . . . . . . . . . Smash 14 | . . . . . . . . . . 5 . . . 1 2 1 1 . 2 2 . . . . . . . Melee Attacks 133 | . . . . . . . . . 6 22 6 6 . 2 8 8 15 2 25 3 17 . 5 6 1 1 . Impact 133 | . . . . . . . . . 6 22 6 6 . 2 8 8 15 2 25 3 17 . 5 6 1 1 . Slashing . | . . . . . . . . . . . . . . . . . . . . . . . . . . . . Piercing . | . . . . . . . . . . . . . . . . . . . . . . . . . . . . Sneak Attacks 21 | . . . . . . . . . . 8 . . . . 4 5 . . . 2 . . . 2 . . . Combat Hostiles . | . . . . . . . . . . . . . . . . . . . . . . . . . . . . Follow-up Attacks . | . . . . . . . . . . . . . . . . . . . . . . . . . . . . Damage Inflicted 68209 | 164 1184 62 . 356 2283 4102 579 1028 1725 3883 2275 2141 2262 1459 1087 1439 2796 2258 3076 1137 2344 1018 5234 5414 9002 5485 4416 Guns 58523 | 164 1179 62 . 356 2283 3158 391 714 1017 2738 2215 1400 2187 666 668 856 1900 2242 2834 1018 2344 1018 4393 5200 9002 5480 3038 Cannons 1361 | . . . . . . 615 72 314 360 . . . . . . . . . . . . . . . . . . Explosions 4521 | . . . . . . 329 116 . 344 . . 741 71 712 . . . . . . . . 841 . . . 1367 Melee 3731 | . . . . . . . . . . 1126 60 . . 80 419 583 896 . 242 111 . . . 214 . . . Ramming 73 | . 5 . . . . . . . 4 19 . . 4 1 . . . 16 . 8 . . . . . 5 11 Kinetic 59668 | 97 1030 62 . 356 2283 3773 463 1028 1377 2738 2215 1400 2187 666 668 856 1900 2242 2834 1018 2344 1018 4393 5200 9002 5480 3038 Thermal 216 | 67 149 . . . . . . . . . . . . . . . . . . . . . . . . . . Explosive 4521 | . . . . . . 329 116 . 344 . . 741 71 712 . . . . . . . . 841 . . . 1367 Electromagnetic . | . . . . . . . . . . . . . . . . . . . . . . . . . . . . Impact 3731 | . . . . . . . . . . 1126 60 . . 80 419 583 896 . 242 111 . . . 214 . . . Slashing . | . . . . . . . . . . . . . . . . . . . . . . . . . . . . Piercing . | . . . . . . . . . . . . . . . . . . . . . . . . . . . . Highest Corruption 18 | . . . . . . 2 2 3 5 6 8 1 1 1 1 3 7 1 1 3 4 1 1 6 6 6 18 Average Corruption 3 | . . . . . . 1 2 2 4 3 6 1 1 1 1 1 6 1 1 1 3 1 1 3 6 4 5 Corruption Purged 13 | . . . . . . . . . . 6 . . . . . . . . . 3 . . . . . 4 . Corruption Blocked . | . . . . . . . . . . . . . . . . . . . . . . . . . . . . Effects 420 | . . . . . . 21 7 18 35 33 42 5 10 6 3 5 51 1 13 6 21 . 18 16 58 41 10 Message Errors 94 | . . . . . . 8 . 4 10 5 6 1 4 3 . 2 14 1 4 3 3 . 4 4 5 9 4 Matter Fused 94 | . . . . . . 5 3 5 7 10 8 1 3 1 1 . 11 . 3 2 4 . 4 5 13 6 2 Heat Flow Errors 45 | . . . . . . . 1 1 5 3 5 . 1 . . 1 5 . 3 . 3 . . 2 9 5 1 Energy Discharges 56 | . . . . . . 3 1 2 4 2 8 1 1 . . 1 6 . 1 1 3 . 3 . 11 8 . Parts Rejected 6 | . . . . . . . . . . 1 . 1 . . . . . . 1 . . . 1 1 . 1 . Parts Fused 7 | . . . . . . . . . 2 1 1 . . . . . . . . . . . . . 2 1 . Data Loss (minor) 50 | . . . . . . 3 2 2 4 6 4 . . . 1 . 7 . . . 5 . 3 . 8 5 . Data Loss (major) 19 | . . . . . . . . 2 1 1 4 . . 2 1 . 2 . . . . . 2 . 2 2 . Misfires 15 | . . . . . . . . 1 1 1 1 . 1 . . . 1 . 1 . 1 . 1 1 4 . 1 Alerts 10 | . . . . . . 2 . 1 . 1 2 . . . . 1 1 . . . . . . . . 2 . Misdirections 2 | . . . . . . . . . . . . . . . . . . . . . . . . . . . 2 Weapon Failures 22 | . . . . . . . . . 1 2 3 1 . . . . 4 . . . 2 . . 3 4 2 . Overload Shots . | . . . . . . . . . . . . . . . . . . . . . . . . . . . . Overflow Damage 1796 | . . . . . . 35 . . 11 570 38 1 . 41 214 417 56 . 58 56 . . 66 144 . . 89 Projectiles 36 | . . . . . . 25 . . 11 . . . . . . . . . . . . . . . . . . Explosions 166 | . . . . . . 10 . . . . . 1 . . . . . . . . . . 66 . . . 89 Melee 1594 | . . . . . . . . . . 570 38 . . 41 214 417 56 . 58 56 . . . 144 . . . Knockbacks 20 | . . . . . . 2 . 4 2 6 . . . . 2 1 . . 1 1 . . . 1 . . . Impact 12 | . . . . . . . . . . 6 . . . . 2 1 . . 1 1 . . . 1 . . . Kinetic 8 | . . . . . . 2 . 4 2 . . . . . . . . . . . . . . . . . . Secondary . | . . . . . . . . . . . . . . . . . . . . . . . . . . . . Self-Inflicted Damage 189 | . 2 . . . . . . . 61 . . 39 . . . . 19 . . . . . . . . . 68 Shots 5 | . . . . . . . . . 2 . . 1 . . . . 1 . . . . . . . . . 1 Rammed 16 | . 1 . . . 1 . . . 1 4 . . 1 1 . . . 2 . 2 . . . . . . 3 Targets Rammed 17 | . 1 . . . 1 . . . 1 4 . . 1 1 . . . 2 . 2 . . . . . 1 3 Kicked . | . . . . . . . . . . . . . . . . . . . . . . . . . . . . Crushed 1 | . . . . . . . . . . . . . . . . . . . . . . . . . . 1 . Highest Temperature 372 | . 22 7 . 6 119 169 141 372 263 198 126 40 141 . . 177 236 18 227 17 233 26 204 307 240 230 102 Average Temperature 43 | . 9 7 . 2 28 45 31 109 61 29 42 18 41 . . 102 58 4 51 13 63 19 34 41 50 64 34 Received Heat Transfer 4592 | . 288 36 . 42 549 589 81 81 147 346 132 151 115 102 54 63 117 27 180 97 26 . 251 20 184 12 902 Effects 3 | . . . . . . . . . . . . . . . . . . . . . . . 3 . . . . Interference 3 | . . . . . . . . . . . . . . . . . . . . . . . 3 . . . . Siege Activations 33 | . . . . . . . . . . . . . . . . . . . 2 2 4 . 4 2 11 5 3 Total Turns 459 | . . . . . . . . . . . . . . . . . . . 29 52 55 . 77 40 126 41 39 Longest Duration 39 | . . . . . . . . . . . . . . . . . . . 17 39 24 . 24 31 33 26 20 Martial Activations . | . . . . . . . . . . . . . . . . . . . . . . . . . . . . Shielding Activations . | . . . . . . . . . . . . . . . . . . . . . . . . . . . . Robots Disrupted . | . . . . . . . . . . . . . . . . . . . . . . . . . . . . Combat Hostiles . | . . . . . . . . . . . . . . . . . . . . . . . . . . . . Robots Corrupted 14 | . . . . . . . . . . 2 . . . 1 4 2 1 . 2 1 . . . 1 . . . Combat Hostiles 3 | . . . . . . . . . . . . . . 1 1 . 1 . . . . . . . . . . Parts Fried 24 | . . . . . . . . . . 5 . . 1 . 7 8 . . . 3 . . . . . . . Impact Corruptions 45 | . . . . . . . . . . 12 2 . . 1 8 12 3 . 2 2 . . . 3 . . . Robots Melted . | . . . . . . . . . . . . . . . . . . . . . . . . . . . . Combat Hostiles . | . . . . . . . . . . . . . . . . . . . . . . . . . . . . Parts Melted . | . . . . . . . . . . . . . . . . . . . . . . . . . . . . Heat Transferred 500 | 150 350 . . . . . . . . . . . . . . . . . . . . . . . . . . Parts Sabotaged . | . . . . . . . . . . . . . . . . . . . . . . . . . . . . Parts Stolen . | . . . . . . . . . . . . . . . . . . . . . . . . . . . . Parts Stripped . | . . . . . . . . . . . . . . . . . . . . . . . . . . . . Power Chain Reactions . | . . . . . . . . . . . . . . . . . . . . . . . . . . . . Alert | -11 -10 -10 -10 -9 -8 -8 -8 -7 -7 -7 -7 -6 -6 -6 -6 -6 -6 -5 -5 -4 -4 -3 -3 -2 -2 -2 -2 ------- Run | Yrd Mat Min Exi Min Mat Gar Mat Fac Gar Fac Gar Fac Ext Cet Arc Hub Gar Fac Gar Fac Gar Res Gar Res Gar Res Qua Maximum Alert Level 5 | . . . . . . 5 3 2 2 2 3 2 1 . . . 2 2 3 2 3 2 4 4 5 4 5 Low Security (%) 31 | 100 100 100 . 100 100 5 . 33 4 45 . . 60 100 100 100 32 6 . . . 14 13 . . . . Level 1 23 | . . . . . . 17 . 51 48 45 11 2 39 . . . 39 91 12 75 28 82 10 . . . . Level 2 16 | . . . . . . 16 . 14 47 9 39 97 . . . . 28 1 57 24 60 2 15 . . . . Level 3 12 | . . . . . . 26 100 . . . 49 . . . . . . . 30 . 10 . 22 80 4 3 . Level 4 10 | . . . . . . 12 . . . . . . . . . . . . . . . . 38 19 42 96 . Level 5 4 | . . . . . . 19 . . . . . . . . . . . . . . . . . . 53 . . High Security . | . . . . . . . . . . . . . . . . . . . . . . . . . . . . Max Security . | . . . . . . . . . . . . . . . . . . . . . . . . . . . 99 Peak Influence 2428 | 10 146 9 . 78 144 2210 1057 460 687 442 952 651 315 163 40 50 564 446 968 508 727 408 1470 1262 2428 1365 1829 Initial 1365 | . . 9 . . 23 85 1057 460 135 360 303 499 303 102 . . . 296 308 508 241 408 133 826 938 1365 744 Average 534 | 1 57 . . 8 64 927 999 262 435 224 648 504 199 62 5 8 332 265 606 362 502 266 822 967 1722 1205 1613 Influence Increases 16171 | 15 597 10 . 138 641 2345 188 276 612 898 649 748 525 112 115 136 644 606 750 341 546 184 1507 1005 1520 518 545 Destroy 0b10 Robot/C 8610 | . 340 . . 100 380 880 120 160 340 500 360 400 320 80 80 100 340 320 380 140 300 120 760 580 865 300 345 Destroy 0b10 Robot/NC 669 | 15 35 10 . 10 55 5 20 20 . 105 5 40 35 5 20 . 10 30 40 20 10 10 5 100 . 60 4 Destroy Leader 1292 | . 70 . . 20 116 20 32 42 10 168 10 76 46 . . 30 20 92 30 32 40 34 50 120 76 110 48 Allied During Kill 464 | . . . . 8 10 16 . . 2 . 22 83 72 . . 5 3 1 8 . 5 18 50 70 . . 91 Successful Hack 212 | . 17 . . . 23 26 . . . 28 14 5 23 . . . 14 3 . . . . 10 42 7 . . Select Force Hacks 60 | . 60 . . . . . . . . . . . . . . . . . . . . . . . . . . Disable Machine 519 | . . . . . . . 15 30 . 30 . 75 15 . 15 . . 45 . 135 . . 30 60 57 12 . Anti-Garrison Action 2751 | . . . . . . 1200 . . 150 . 150 . . . . . 200 . 250 . 100 . 400 . 301 . . Destroy Structure 940 | . . . . . 12 108 1 9 50 7 28 54 14 27 . 1 27 40 42 14 76 2 202 33 124 12 57 Lose Combat Pursuer 654 | . 75 . . . 45 90 . 15 60 60 60 15 . . . . 30 75 . . 15 . . . 90 24 . Influence Decreases 15172 | 15 572 35 . 78 569 307 1345 1095 119 1152 130 1079 962 296 115 136 80 730 222 964 164 733 215 1224 343 1623 869 Entered New Map 7062 | . . 16 . . 37 47 1113 553 59 327 130 453 318 82 . . . 268 132 460 104 319 45 644 313 1063 579 Time Decay 6290 | 15 562 19 . 78 512 . 222 522 . 715 . 386 514 144 115 116 . 452 . 464 . 374 . 550 . 530 . Lost Part 790 | . 10 . . . 10 100 10 20 60 80 . . 10 70 . 20 40 10 30 10 20 . 10 10 30 30 210 Lost Ally 1030 | . . . . . 10 160 . . . 30 . 240 120 . . . 40 . 60 30 40 40 160 20 . . 80 Squads Dispatched 73 | . 2 . . . 4 . 2 3 . 8 . 6 1 . . 4 . 6 . 6 . 4 . 11 . 4 12 Investigation 10 | . 2 . . . 3 . . 1 . . . 2 . . . 1 . . . . . . . 1 . . . Extermination 22 | . . . . . . . . 2 . 5 . 2 . . . 2 . 2 . 2 . 2 . 2 . 3 . Reinforcement 12 | . . . . . . . . . . 2 . 1 1 . . . . 2 . 2 . . . 4 . . . Assault 20 | . . . . . . . 2 . . 1 . 1 . . . . . . . 2 . . . 1 . 1 12 Garrison 9 | . . . . . 1 . . . . . . . . . . 1 . 2 . . . 2 . 3 . . . Intercept . | . . . . . . . . . . . . . . . . . . . . . . . . . . . . Searches Triggered . | . . . . . . . . . . . . . . . . . . . . . . . . . . . . Construction Impeded . | . . . . . . . . . . . . . . . . . . . . . . . . . . . . Haulers Reinforced 8 | . . . . . . . . . . 1 . 1 . . . . . 2 . . . . . 4 . . . Active Scanning Responses . | . . . . . . . . . . . . . . . . . . . . . . . . . . . . Cargo Convoy Interrupts 1 | . . . . . . . . . . . . . . . . . . . . 1 . . . . . . . Stealth | -11 -10 -10 -10 -9 -8 -8 -8 -7 -7 -7 -7 -6 -6 -6 -6 -6 -6 -5 -5 -4 -4 -3 -3 -2 -2 -2 -2 --------- Run | Yrd Mat Min Exi Min Mat Gar Mat Fac Gar Fac Gar Fac Ext Cet Arc Hub Gar Fac Gar Fac Gar Res Gar Res Gar Res Qua Distress Signals 18 | . 1 . . . 2 4 2 . . . . 1 . 1 1 . . . . . . . . 5 . 1 . Communications Jammed 163 | . . . . . . . . . . . . . . . . . . . . . . . . . . . 163 Distress Signals 163 | . . . . . . . . . . . . . . . . . . . . . . . . . . . 163 Times Spotted 592 | . 26 2 . 2 28 56 20 10 21 35 23 14 24 4 5 9 18 21 25 15 16 13 39 35 44 25 62 Peak Tracking Total 28 | . 3 2 . 2 5 7 8 3 6 2 5 8 6 5 2 4 7 5 7 5 6 3 6 5 9 4 28 Tactical Retreats 27 | . 3 . . . 2 3 . 1 2 3 3 1 . . . . 2 2 . . 1 . . . 3 1 . Traps | -11 -10 -10 -10 -9 -8 -8 -8 -7 -7 -7 -7 -6 -6 -6 -6 -6 -6 -5 -5 -4 -4 -3 -3 -2 -2 -2 -2 ------- Run | Yrd Mat Min Exi Min Mat Gar Mat Fac Gar Fac Gar Fac Ext Cet Arc Hub Gar Fac Gar Fac Gar Res Gar Res Gar Res Qua Traps Triggered 44 | . . . . . . 10 . 1 4 2 3 . . . . . 5 . 1 2 2 . 7 2 4 . 1 Indirectly . | . . . . . . . . . . . . . . . . . . . . . . . . . . . . Trap Hack Attempts . | . . . . . . . . . . . . . . . . . . . . . . . . . . . . Triggered . | . . . . . . . . . . . . . . . . . . . . . . . . . . . . Disarmed . | . . . . . . . . . . . . . . . . . . . . . . . . . . . . Reprogrammed . | . . . . . . . . . . . . . . . . . . . . . . . . . . . . Reused . | . . . . . . . . . . . . . . . . . . . . . . . . . . . . Traps Extracted . | . . . . . . . . . . . . . . . . . . . . . . . . . . . . Installed . | . . . . . . . . . . . . . . . . . . . . . . . . . . . . Triggered . | . . . . . . . . . . . . . . . . . . . . . . . . . . . . Machines | -11 -10 -10 -10 -9 -8 -8 -8 -7 -7 -7 -7 -6 -6 -6 -6 -6 -6 -5 -5 -4 -4 -3 -3 -2 -2 -2 -2 ---------- Run | Yrd Mat Min Exi Min Mat Gar Mat Fac Gar Fac Gar Fac Ext Cet Arc Hub Gar Fac Gar Fac Gar Res Gar Res Gar Res Qua Machines Disabled 64 | . . . . . . 8 1 2 1 2 2 5 2 . 1 . 4 3 3 9 2 . 9 4 5 1 . Max in Single Turn 6 | . . . . . . 1 1 1 1 1 1 5 1 . 1 . 1 1 1 6 1 . 1 2 1 1 . Garrison Access 1 | . . . . . . . . . . . . . . . . . . . . 1 . . . . . . . Garrison Relay 22 | . . . . . . 8 . . 1 . 1 . . . . . 2 . 3 . 2 . 4 . 1 . . Machines Repaired . | . . . . . . . . . . . . . . . . . . . . . . . . . . . . Machines Dismantled . | . . . . . . . . . . . . . . . . . . . . . . . . . . . . Machines Sabotaged . | . . . . . . . . . . . . . . . . . . . . . . . . . . . . Overloaded Fab Kills . | . . . . . . . . . . . . . . . . . . . . . . . . . . . . Hacking | -11 -10 -10 -10 -9 -8 -8 -8 -7 -7 -7 -7 -6 -6 -6 -6 -6 -6 -5 -5 -4 -4 -3 -3 -2 -2 -2 -2 --------- Run | Yrd Mat Min Exi Min Mat Gar Mat Fac Gar Fac Gar Fac Ext Cet Arc Hub Gar Fac Gar Fac Gar Res Gar Res Gar Res Qua Machines Accessed 74 | . 9 . 2 . 9 3 3 2 . 8 2 4 4 . . 2 1 6 1 2 1 4 1 4 4 2 . Terminals 50 | . 7 . . . 7 3 2 1 . 4 2 3 4 . . 1 1 3 1 . 1 1 1 2 4 2 . Fabricators 4 | . . . . . . . . . . 1 . 1 . . . . . 1 . 1 . . . . . . . Repair Stations 3 | . . . . . . . . . . . . . . . . . . 1 . . . 1 . 1 . . . Recycling Units 6 | . 2 . . . 1 . 1 . . 2 . . . . . . . . . . . . . . . . . Scanalyzers 1 | . . . . . . . . . . . . . . . . . . . . . . 1 . . . . . Garrison Access 8 | . . . . . 1 . . 1 . 1 . . . . . 1 . 1 . 1 . 1 . 1 . . . Total Hacks 163 | . 28 . 2 . 30 5 7 3 . 13 4 12 7 . . 4 1 10 2 3 3 5 1 10 9 4 . Successful 71 | . 17 . 2 . 15 3 2 1 . 4 2 2 5 . . 1 1 4 . 2 1 2 1 3 2 1 . Failed 90 | . 10 . . . 15 2 5 2 . 9 2 10 2 . . 3 . 6 2 1 2 2 . 7 7 3 . Catastrophic 23 | . 1 . . . 1 2 . 1 . 6 . 1 1 . . 1 . 2 . 1 . 2 . . 3 1 . Database Lockouts 2 | . 1 . . . . . . . . . . . . . . . . . . . . 1 . . . . . Manual 92 | . 23 . 1 . 27 . 4 . . 5 1 8 6 . . 1 . 3 . . . 1 . 8 . 4 . Terminals 128 | . 23 . . . 26 5 5 2 . 7 4 11 7 . . 3 1 6 2 . 3 1 1 8 9 4 . Fabricators 7 | . . . . . . . . . . 2 . 1 . . . . . 2 . 2 . . . . . . . Repair Stations 3 | . . . . . . . . . . . . . . . . . . 1 . . . 1 . 1 . . . Recycling Units 13 | . 5 . . . 3 . 2 . . 3 . . . . . . . . . . . . . . . . . Scanalyzers 2 | . . . . . . . . . . . . . . . . . . . . . . 2 . . . . . Garrison Access 8 | . . . . . 1 . . 1 . 1 . . . . . 1 . 1 . 1 . 1 . 1 . . . Terminal Hacks 23 | . 3 . 2 . 2 3 . . . 1 2 1 1 . . . 1 1 . . 1 . 1 1 2 1 . Record 2 | . . . 1 . . . . . . . . . . . . . . . . . . . . 1 . . . Robot Analysis 2 | . 1 . . . 1 . . . . . . . . . . . . . . . . . . . . . . Open Door 3 | . . . . . . 1 . . . . . . 1 . . . . . . . . . . . 1 . . Branch Access Points 1 | . . . . . . . . . . . . . . . . . . . . . . . . . . 1 . Emergency Access Points 6 | . . . . . . 1 . . . . 1 . . . . . 1 . . . 1 . 1 . 1 . . Locate Traps 3 | . 1 . . . 1 . . . . 1 . . . . . . . . . . . . . . . . . Transport Status 1 | . . . . . . . . . . . . . . . . . . 1 . . . . . . . . . Hauler Manifests 1 | . 1 . . . . . . . . . . . . . . . . . . . . . . . . . . Zone Layout 1 | . . . . . . . . . . . . 1 . . . . . . . . . . . . . . . Garrison Registry 1 | . . . . . . 1 . . . . . . . . . . . . . . . . . . . . . Patrol Navigation 1 | . . . . . . . . . . . 1 . . . . . . . . . . . . . . . . Proto ID Catalog 1 | . . . 1 . . . . . . . . . . . . . . . . . . . . . . . . Fabricator Hacks 4 | . . . . . . . . . . 1 . 1 . . . . . 1 . 1 . . . . . . . Network Status 4 | . . . . . . . . . . 1 . 1 . . . . . 1 . 1 . . . . . . . Repair Station Hacks . | . . . . . . . . . . . . . . . . . . . . . . . . . . . . Recycling Unit Hacks 1 | . . . . . . . 1 . . . . . . . . . . . . . . . . . . . . Retrieve Components 1 | . . . . . . . 1 . . . . . . . . . . . . . . . . . . . . Scanalyzer 1 | . . . . . . . . . . . . . . . . . . . . . . 1 . . . . . Retrieve Study 1 | . . . . . . . . . . . . . . . . . . . . . . 1 . . . . . Garrison Access Hacks 8 | . . . . . 1 . . 1 . 1 . . . . . 1 . 1 . 1 . 1 . 1 . . . Unlock Access 8 | . . . . . 1 . . 1 . 1 . . . . . 1 . 1 . 1 . 1 . 1 . . . Unauthorized Hacks 34 | . 14 . . . 12 . 1 . . 1 . . 4 . . . . 1 . . . . . 1 . . . Terminals 30 | . 12 . . . 12 . 1 . . 1 . . 4 . . . . . . . . . . . . . . Assimilate 1 | . . . . . 1 . . . . . . . . . . . . . . . . . . . . . . Botnet 17 | . 6 . . . 6 . 1 . . 1 . . 3 . . . . . . . . . . . . . . Skim 12 | . 6 . . . 5 . . . . . . . 1 . . . . . . . . . . . . . . Fabricators . | . . . . . . . . . . . . . . . . . . . . . . . . . . . . Repair Stations 2 | . . . . . . . . . . . . . . . . . . 1 . . . . . 1 . . . Mechanics 2 | . . . . . . . . . . . . . . . . . . 1 . . . . . 1 . . . Recycling Units 2 | . 2 . . . . . . . . . . . . . . . . . . . . . . . . . . Tunnel 2 | . 2 . . . . . . . . . . . . . . . . . . . . . . . . . . Scanalyzers . | . . . . . . . . . . . . . . . . . . . . . . . . . . . . Garrison Access . | . . . . . . . . . . . . . . . . . . . . . . . . . . . . Data Cores Recovered 3 | . 1 . . . 1 . . . . . . . . . . . . . . . . . . . . 1 . Used . | . . . . . . . . . . . . . . . . . . . . . . . . . . . . Hacking Detections 56 | . 7 . . . 8 2 3 1 . 7 2 3 3 . . 2 1 4 1 1 1 3 . 4 2 1 . Full Trace Events 10 | . . . . . 2 1 . 1 . . . 2 . . . 1 . . . . . . . 1 2 . . Feedback Events . | . . . . . . . . . . . . . . . . . . . . . . . . . . . . Feedback Blocked . | . . . . . . . . . . . . . . . . . . . . . . . . . . . . Robot Schematics Acquired . | . . . . . . . . . . . . . . . . . . . . . . . . . . . . Robots Built . | . . . . . . . . . . . . . . . . . . . . . . . . . . . . Authchips . | . . . . . . . . . . . . . . . . . . . . . . . . . . . . Time . | . . . . . . . . . . . . . . . . . . . . . . . . . . . . Total Robot Build Rating . | . . . . . . . . . . . . . . . . . . . . . . . . . . . . Part Schematics Acquired . | . . . . . . . . . . . . . . . . . . . . . . . . . . . . Parts Built . | . . . . . . . . . . . . . . . . . . . . . . . . . . . . Authchips . | . . . . . . . . . . . . . . . . . . . . . . . . . . . . Time . | . . . . . . . . . . . . . . . . . . . . . . . . . . . . Total Part Build Rating . | . . . . . . . . . . . . . . . . . . . . . . . . . . . . Part Studies Acquired 1 | . . . . . . . . . . . . . . . . . . . . . . 1 . . . . . Parts Repaired . | . . . . . . . . . . . . . . . . . . . . . . . . . . . . Time . | . . . . . . . . . . . . . . . . . . . . . . . . . . . . Parts Recycled . | . . . . . . . . . . . . . . . . . . . . . . . . . . . . Recycled Matter . | . . . . . . . . . . . . . . . . . . . . . . . . . . . . Retrieved Matter . | . . . . . . . . . . . . . . . . . . . . . . . . . . . . Retrieved Components 2 | . . . . . . . 2 . . . . . . . . . . . . . . . . . . . . Parts Scanalyzed . | . . . . . . . . . . . . . . . . . . . . . . . . . . . . Part Schematics Acquired . | . . . . . . . . . . . . . . . . . . . . . . . . . . . . Parts Damaged . | . . . . . . . . . . . . . . . . . . . . . . . . . . . . Bothacking | -11 -10 -10 -10 -9 -8 -8 -8 -7 -7 -7 -7 -6 -6 -6 -6 -6 -6 -5 -5 -4 -4 -3 -3 -2 -2 -2 -2 ------------ Run | Yrd Mat Min Exi Min Mat Gar Mat Fac Gar Fac Gar Fac Ext Cet Arc Hub Gar Fac Gar Fac Gar Res Gar Res Gar Res Qua Used RIF Installer 9 | . . . . . . 1 . . 1 . 1 . . . . . 2 . 1 . 1 . 1 . 1 . . Coupler Efficiency 1 | . . . . . . . . . 1 . . . . . . . . . . . . . . . . . . Threat Obfuscator 1 | . . . . . . . . . . . . . . . . . . . . . . . . . 1 . . Signal Jammer 1 | . . . . . . . . . . . . . . . . . 1 . . . . . . . . . . Zone Cloak 1 | . . . . . . . . . . . . . . . . . . . 1 . . . . . . . . Watcher Feeds 1 | . . . . . . . . . . . 1 . . . . . . . . . . . . . . . . Patrol Navigation 1 | . . . . . . . . . . . . . . . . . 1 . . . . . . . . . . Alert ID Control 1 | . . . . . . . . . . . . . . . . . . . . . . . 1 . . . . Autoassimilate 1 | . . . . . . . . . . . . . . . . . . . . . 1 . . . . . . Robots Hacked 35 | . . . . . . . . . 2 5 1 . . . 5 . 4 . 6 2 3 2 3 . . . 2 Non-combat 9 | . . . . . . . . . . 3 . . . . 5 . . . . 1 . . . . . . . Combat 26 | . . . . . . . . . 2 2 1 . . . . . 4 . 6 1 3 2 3 . . . 2 Robot Hacks Applied 42 | . . . . . . . . . 3 7 1 . . . 5 . 5 . 7 2 4 2 3 . . . 3 parse_system 2 | . . . . . . . . . . . 1 . . . . . 1 . . . . . . . . . . drop_inventory 1 | . . . . . . . . . . 1 . . . . . . . . . . . . . . . . . ignore_parts 1 | . . . . . . . . . . 1 . . . . . . . . . . . . . . . . . map_route 1 | . . . . . . . . . . 1 . . . . . . . . . . . . . . . . . mark_system 1 | . . . . . . . . . . . . . . . . . . . . . . . . . . . 1 spike_heat 1 | . . . . . . . . . . 1 . . . . . . . . . . . . . . . . . overload_power 2 | . . . . . . . . . . . . . . . . . 1 . 1 . . . . . . . . amplify_resonance 4 | . . . . . . . . . 1 . . . . . . . 1 . . . . . 2 . . . . disable_weapons 1 | . . . . . . . . . 1 . . . . . . . . . . . . . . . . . . reboot_system 3 | . . . . . . . . . . . . . . . . . . . 2 . 1 . . . . . . go_dormant 1 | . . . . . . . . . . 1 . . . . . . . . . . . . . . . . . overwrite_iff 9 | . . . . . . . . . 1 1 . . . . . . 2 . 3 . 2 . . . . . . formatsys_low 5 | . . . . . . . . . . . . . . . 5 . . . . . . . . . . . . formatsys_high 9 | . . . . . . . . . . 1 . . . . . . . . 1 2 1 2 1 . . . 1 formatsys_deep 1 | . . . . . . . . . . . . . . . . . . . . . . . . . . . 1 Relay Couplers Released 94 | . . . . . . 31 . . 3 4 4 . . . . . 9 . 11 1 10 . 17 . 4 . . Machine Destruction 90 | . . . . . . 31 . . 3 . 4 . . . . . 9 . 11 1 10 . 17 . 4 . . Programmers 4 | . . . . . . . . . . 4 . . . . . . . . . . . . . . . . . Attached 12 | . . . . . . . . . 1 1 . . . . 1 . 1 . 2 2 1 1 . . . 1 1 Fabnet Peak Effective % . | . . . . . . . . . . . . . . . . . . . . . . . . . . . . Robots Rewired 39 | . . . . . . 8 . . . . 14 . 6 . . . 1 . . . . . 10 . . . . Allies Hacked 2 | . . . . . . . . . . . . . . . . . . . . . . 1 . 1 . . . Hacks Repelled . | . . . . . . . . . . . . . . . . . . . . . . . . . . . . Allies | -11 -10 -10 -10 -9 -8 -8 -8 -7 -7 -7 -7 -6 -6 -6 -6 -6 -6 -5 -5 -4 -4 -3 -3 -2 -2 -2 -2 -------- Run | Yrd Mat Min Exi Min Mat Gar Mat Fac Gar Fac Gar Fac Ext Cet Arc Hub Gar Fac Gar Fac Gar Res Gar Res Gar Res Qua Total Allies 75 | . . . . 3 1 9 . . 1 2 14 . 7 . 5 . 3 . 4 2 3 2 13 . . . 6 Largest Group 12 | . . . . 3 2 3 . . 1 1 12 12 4 . 5 5 1 1 3 1 1 2 7 3 . . 4 Highest-Rated Group 518 | . . . . 40 32 72 . . 24 16 242 242 241 . 225 225 85 85 105 49 49 111 175 168 . . 518 Highest-Rated Ally 344 | . . . . 16 16 31 . . 24 16 32 32 159 . 45 45 85 85 47 49 49 64 148 56 . . 344 Total Orders 34 | . . . . . 1 2 . . . . 2 . 7 . . 2 4 1 . . 1 2 10 . . . 2 STAY 20 | . . . . . 1 2 . . . . 1 . 3 . . 2 2 1 . . 1 1 5 . . . 1 ROAM 2 | . . . . . . . . . . . . . 1 . . . . . . . . . 1 . . . . FOLLOW 10 | . . . . . . . . . . . 1 . 2 . . . 2 . . . . 1 4 . . . . AID 2 | . . . . . . . . . . . . . 1 . . . . . . . . . . . . . 1 Ally Attacks 366 | . . . . 12 3 60 . . 1 3 14 54 55 . . . 10 6 13 3 16 9 52 30 . . 25 Total Damage 9154 | . . . . 126 30 935 . . 20 46 85 1199 1158 . . . 260 247 370 90 354 218 1423 770 . . 1823 Kills 58 | . . . . 3 1 5 . . 1 . 2 8 6 . . . . 2 5 1 1 2 6 5 . . 10 Allies Corrupted 5 | . . . . . . 1 . . . . . . . . . 2 . . . . . 2 . . . . . Allies Melted 4 | . . . . . . . . . . . . 3 1 . . . . . . . . . . . . . . Intel | -11 -10 -10 -10 -9 -8 -8 -8 -7 -7 -7 -7 -6 -6 -6 -6 -6 -6 -5 -5 -4 -4 -3 -3 -2 -2 -2 -2 ------- Run | Yrd Mat Min Exi Min Mat Gar Mat Fac Gar Fac Gar Fac Ext Cet Arc Hub Gar Fac Gar Fac Gar Res Gar Res Gar Res Qua Active Infowar (turns) 4621 | 19 1778 1010 415 19 1379 . . . . . . . . . . . . . . . . . 1 . . . . Optics 1379 | . . . . . 1379 . . . . . . . . . . . . . . . . . . . . . . Seismic 3241 | 19 1778 1010 415 19 . . . . . . . . . . . . . . . . . . . . . . . Spoofing 1 | . . . . . . . . . . . . . . . . . . . . . . . 1 . . . . Robot Analysis Total 2 | . 1 . . . 1 . . . . . . . . . . . . . . . . . . . . . . Derelict Logs Recovered 4 | . . 2 . 2 . . . . . . . . . . . . . . . . . . . . . . . Drone Launches . | . . . . . . . . . . . . . . . . . . . . . . . . . . . . Drone Recoveries . | . . . . . . . . . . . . . . . . . . . . . . . . . . . . Exploration | -11 -10 -10 -10 -9 -8 -8 -8 -7 -7 -7 -7 -6 -6 -6 -6 -6 -6 -5 -5 -4 -4 -3 -3 -2 -2 -2 -2 ------------- Run | Yrd Mat Min Exi Min Mat Gar Mat Fac Gar Fac Gar Fac Ext Cet Arc Hub Gar Fac Gar Fac Gar Res Gar Res Gar Res Qua Turns Passed 35483 | 112 1778 1010 415 892 1805 2962 470 1454 1434 3286 1244 919 1411 342 575 588 1671 1121 1441 1165 1041 873 2011 1597 2067 1481 318 Spaces Moved 14381 | 68 844 425 258 469 705 987 167 560 506 1193 388 331 668 87 208 231 723 556 654 485 408 444 935 681 677 580 143 Core 20 | 4 . . . . . . . . . . . . . . . . . . . . . . . . . . 16 Treads 13757 | 2 411 425 258 469 705 987 167 560 506 1096 388 331 668 87 208 231 723 556 654 485 408 444 935 681 677 580 115 Legs . | . . . . . . . . . . . . . . . . . . . . . . . . . . . . Wheels 592 | 62 433 . . . . . . . . 97 . . . . . . . . . . . . . . . . . Hover . | . . . . . . . . . . . . . . . . . . . . . . . . . . . . Flight 12 | . . . . . . . . . . . . . . . . . . . . . . . . . . . 12 Fastest Speed 35 | 50 95 160 160 160 160 160 240 240 160 145 160 160 160 160 160 160 160 160 160 160 160 160 160 165 165 165 35 Average Speed 194 | 89 174 228 160 160 199 236 240 240 236 228 236 160 160 335 203 196 175 160 160 160 160 160 163 194 241 197 141 Slowest Speed 400 | 160 240 240 160 160 240 240 240 240 240 320 240 240 160 400 400 240 240 160 240 240 160 160 165 245 245 245 250 Overloaded Moves . | . . . . . . . . . . . . . . . . . . . . . . . . . . . . Propulsion Burnouts . | . . . . . . . . . . . . . . . . . . . . . . . . . . . . Robots Hopped . | . . . . . . . . . . . . . . . . . . . . . . . . . . . . Potential Cave-ins . | . . . . . . . . . . . . . . . . . . . . . . . . . . . . Cave-ins Triggered . | . . . . . . . . . . . . . . . . . . . . . . . . . . . . Exploration Rate (%) 46 | 5 98 93 70 94 47 84 23 13 36 31 39 10 70 55 98 19 62 15 56 19 42 9 73 21 80 23 28 Regions Visited 27 Branch Regions 8 Pre-discovered Areas 5 | . 4 . 1 . . . . . . . . . . . . . . . . . . . . . . . . Known Exits Taken 12 | . . 1 . . 1 . 1 1 . 1 . 1 . . . 1 . 1 . 1 . 1 . 1 . 1 . Unknown Exits Taken 7 | 1 1 . 1 1 . . . . . . . . 1 1 1 . . . . . . . . . . . . Scrap Searched 5 | . . 3 . 2 . . . . . . . . . . . . . . . . . . . . . . . Spaces Dug 75 | . . . . . 11 . . . 1 4 3 6 . . . 1 2 1 16 1 7 . 3 3 13 3 . Terrain Destroyed 552 | . . . . . 11 23 2 5 34 4 7 56 23 70 . 7 13 13 28 5 23 1 116 13 65 4 29 Melee 47 | . . . . . . . . . 1 4 2 6 . . . 1 2 1 16 1 7 . 2 3 . 1 . Projectile 133 | . . . . . . 8 2 5 1 . 4 4 5 2 . 6 10 12 12 3 15 1 20 8 8 3 4 AOE 361 | . . . . . 11 15 . . 32 . . 46 18 68 . . . . . . . . 92 . 54 . 25 Terrain Rammed . | . . . . . . . . . . . . . . . . . . . . . . . . . . . . Walls Destroyed . | . . . . . . . . . . . . . . . . . . . . . . . . . . . . Machines Disabled . | . . . . . . . . . . . . . . . . . . . . . . . . . . . . Actions | -11 -10 -10 -10 -9 -8 -8 -8 -7 -7 -7 -7 -6 -6 -6 -6 -6 -6 -5 -5 -4 -4 -3 -3 -2 -2 -2 -2 --------- Run | Yrd Mat Min Exi Min Mat Gar Mat Fac Gar Fac Gar Fac Ext Cet Arc Hub Gar Fac Gar Fac Gar Res Gar Res Gar Res Qua Total 19895 | 93 1046 457 262 580 966 1405 216 620 650 1567 603 632 900 104 315 310 1001 721 909 833 697 579 1312 845 1089 929 254 Wait 2788 | 3 93 15 . 85 157 141 26 25 58 175 92 233 66 . 57 41 126 86 97 286 159 73 184 38 207 238 27 Move 14360 | 67 843 424 257 468 705 986 166 560 505 1192 387 330 667 86 207 231 721 556 653 485 407 444 934 681 676 579 143 Hop . | . . . . . . . . . . . . . . . . . . . . . . . . . . . . Pick Up 190 | 5 22 5 1 3 12 13 3 4 6 15 3 1 4 1 3 4 13 8 12 6 8 5 7 5 16 2 3 Fast Attach 181 | 7 1 2 . . 6 6 . 2 4 13 5 5 6 . 4 1 22 5 12 5 13 11 21 12 6 8 4 Attach 118 | . . . . . 4 7 . 3 5 8 . 2 3 1 6 4 5 4 7 5 6 3 6 5 11 10 13 Detach 32 | . . . . . . . . . . 2 . . . . 1 . 1 1 1 2 1 . 3 3 7 5 5 Swap 274 | . 11 . . 1 10 14 5 2 9 26 15 20 18 1 9 4 17 8 16 9 21 8 27 11 6 4 2 Drop 326 | . 20 7 4 5 12 16 5 1 6 26 13 8 19 . 3 1 30 10 26 8 21 14 27 15 19 6 4 Fire 1275 | 11 55 4 . 18 59 128 11 23 46 84 62 27 53 12 17 16 51 39 60 22 44 21 87 69 132 75 49 Melee 133 | . . . . . . . . . 6 22 6 6 . 2 8 8 15 2 25 3 17 . 5 6 1 1 . Ram 4 | . 1 . . . . . . . . . . . . . . . . . . . . . . . . . 3 Kick . | . . . . . . . . . . . . . . . . . . . . . . . . . . . . Crush 13 | . . . . . 1 . . . 1 4 . . 1 1 . . . 2 . 2 . . . . . 1 . Escape Stasis 32 | . . . . . . 15 . . 4 . 4 . . . . . . . . . . . . . 8 . 1 Rewire 169 | . . . . . . 79 . . . . 16 . 63 . . . . . . . . . 11 . . . . Trap . | . . . . . . . . . . . . . . . . . . . . . . . . . . . . Miscellaneous . | . . . . . . . . . . . . . . . . . . . . . . . . . . . . Route ------- -11/Scrapyard -10/Materials (discovered 6 exits: *Mat x3 / [*Min x2] / *Sub) -10/Mines (discovered 4 exits: *Mat x2 / *Exi / Sub) -10/Exiles (discovered 2 exits: [*Min x2]) -9/Mines (discovered 2 exits: *Mat x2) -8/Materials (discovered 2 exits: *Fac / Gar) -8/Garrison (discovered 3 exits: *Mat x3) -8/Materials -7/Factory (discovered 2 exits: [*Low] / Gar) -7/Garrison -7/Factory -7/Garrison -6/Factory -6/Extension (discovered 2 exits: *Fac / [*Cet]) -6/Cetus -6/Archives (discovered 3 exits: *Fac / *Hub x2) -6/Hub_04(d) -6/Garrison -5/Factory (discovered 2 exits: [*Upp] / Gar) -5/Garrison (discovered 2 exits: *Fac x2) -4/Factory (discovered 2 exits: *Res / Gar) -4/Garrison -3/Research -3/Garrison (discovered 2 exits: *Res x2) -2/Research -2/Garrison (discovered 3 exits: *Res x3) -2/Research (discovered 2 exits: *Qua x2) -2/Quarantine History --------- Turn | Location | Event 38 | -11/Scrapyard | Discovered new exit (range 15) 113 | -11/Scrapyard | Entered Materials 307 | -10/Materials | Build established: Mutant 472 | -10/Materials | Discovered new exit (range 9) 516 | -10/Materials | Discovered new exit (range 3) 823 | -10/Materials | Discovered new exit (range 6) 835 | -10/Materials | Central database locked down 1066 | -10/Materials | Discovered new exit (range 8) 1138 | -10/Materials | Discovered new exit (range 7) 1271 | -10/Materials | Learned location of 2 exits from Subcaves 1317 | -10/Materials | Loaded intel: 13 trap records 1352 | -10/Materials | Learned location of Storage (-7) 1361 | -10/Materials | Discovered new exit (range 4) 1378 | -10/Materials | Learned 4 Recycling zone layouts 1392 | -10/Materials | Learned Materials trap positions 1395 | -10/Materials | Learned location of 1 exit from Storage 1396 | -10/Materials | Learned 2 Mines zone layouts 1403 | -10/Materials | Learned 2 Mines zone layouts 1421 | -10/Materials | Learned 2 Mines zone layouts 1447 | -10/Materials | Learned 2 Mines zone layouts 1891 | -10/Materials | Entered Mines 1892 | -10/Mines | Identified exit to Subcaves 1892 | -10/Mines | Identified exit to Materials 1892 | -10/Mines | Identified exit to Exiles 1923 | -10/Mines | A weapon hastily lodged in a ceiling crevice suddenly fell to the ground 2018 | -10/Mines | Deemed a non-threat by the Exiles lab entrance 2188 | -10/Mines | Discovered exit to Materials (range 4) 2312 | -10/Mines | YI-UF0 nonchalantly dropped a Grenade Launcher on the ground 2589 | -10/Mines | Learned Materials garrison access intel 2756 | -10/Mines | Learned 2 Materials zone layouts 2770 | -10/Mines | Joined a pair of Derelicts in attacking an 0b10 outpost 2901 | -10/Mines | Entered Exiles 2925 | -10/Exiles | Discovered new exit (range 15) 2945 | -10/Exiles | Met 8R-AWN 2967 | -10/Exiles | Met EX-HEX 3010 | -10/Exiles | Met EX-BIN 3033 | -10/Exiles | Aligned with FarCom system 3034 | -10/Exiles | Given EX-Vault access code 3077 | -10/Exiles | Opened EX-Vault 3089 | -10/Exiles | Found XL Autogun Array 3125 | -10/Exiles | Warned to stay clear of 0b10 Research branches 3176 | -10/Exiles | Met EX-DEC 3183 | -10/Exiles | Learned location of Zion (-7) 3298 | -10/Exiles | Discovered new exit (range 12) 3316 | -10/Exiles | Left Exiles lab with XL Autogun Array 3316 | -10/Exiles | Entered Mines 3327 | -9/Mines | Core integrity fell below 50% 3419 | -9/Mines | Discovered new exit (range 3) 3425 | -9/Mines | Received a Rocket Launcher from a helpful Derelict 3495 | -9/Mines | Learned 2 Materials zone layouts 3786 | -9/Mines | Assisted by bots powering up and referring to "LRC-V3" 4167 | -9/Mines | Discovered new exit (range 10) 4208 | -9/Mines | Entered Materials 4208 | -8/Materials | Accompanied by 2 allies 4208 | -8/Materials | Evolved 4 slots: Propulsion x1, Utility x1, Weapon x2 4209 | -8/Materials | Identified exit to Factory 4211 | -8/Materials | Loaded intel: 20 trap records 4212 | -8/Materials | Loaded intel: 1 garrison access location 4523 | -8/Materials | Build established: Scavenger-Skirmisher 5053 | -8/Materials | Learned Storage trap positions 5074 | -8/Materials | Learned location of 1 exit from Lower Caves 5084 | -8/Materials | Learned Storage emergency access door positions 5085 | -8/Materials | Learned 4 Factory zone layouts 5092 | -8/Materials | Learned Factory security intel 5108 | -8/Materials | Learned 2 Storage zone layouts 5719 | -8/Materials | Garrison activated, responded to threat 6013 | -8/Materials | Identified exit to Garrison 6013 | -8/Materials | Entered Garrison 6096 | -8/Garrison | Garrison Relay disabled 6109 | -8/Garrison | Triggered checkpoint 6927 | -8/Garrison | Rescued a captive Derelict 7027 | -8/Garrison | Triggered checkpoint 7045 | -8/Garrison | Triggered checkpoint 7170 | -8/Garrison | Garrison Relay disabled 7232 | -8/Garrison | Discovered new exit (range 11) 7253 | -8/Garrison | Installed Relay Interface Framework 7462 | -8/Garrison | Triggered checkpoint 7517 | -8/Garrison | Triggered checkpoint 7606 | -8/Garrison | Discovered new exit (range 10) 7812 | -8/Garrison | Triggered checkpoint 7888 | -8/Garrison | Lost 3 allies 8037 | -8/Garrison | Garrison Relay disabled 8039 | -8/Garrison | Garrison Relay disabled 8041 | -8/Garrison | Garrison Relay disabled 8111 | -8/Garrison | Triggered checkpoint 8173 | -8/Garrison | Garrison Relay disabled 8218 | -8/Garrison | Garrison Relay disabled 8445 | -8/Garrison | Lost 3 parts (1p1u1w) 8602 | -8/Garrison | Discovered new exit (range 12) 8635 | -8/Garrison | Triggered checkpoint 8896 | -8/Garrison | Discovered new exit (range 79) 8896 | -8/Garrison | Discovered new exit (range 44) 8896 | -8/Garrison | Discovered new exit (range 24) 8975 | -8/Garrison | Entered Materials 9375 | -8/Materials | First assault squad dispatched 9435 | -8/Materials | Discovered exit to Factory (range 5) 9445 | -8/Materials | Entered Factory 9445 | -7/Factory | Evolved 2 slots: Utility x2 9704 | -7/Factory | Discovered new exit (range 9) 9721 | -7/Factory | Build established: Scavenger-Gunner 10899 | -7/Factory | Identified exit to Garrison 10899 | -7/Factory | Entered Garrison 10991 | -7/Garrison | Triggered checkpoint 11017 | -7/Garrison | Lost 4 parts (3n1w) 11250 | -7/Garrison | Garrison Relay disabled 11433 | -7/Garrison | Triggered checkpoint 11653 | -7/Garrison | Triggered checkpoint 11696 | -7/Garrison | Discovered new exit (range 10) 11810 | -7/Garrison | Expanded RIF knowledge: Coupler Efficiency 12068 | -7/Garrison | Triggered checkpoint 12333 | -7/Garrison | Entered Factory 13432 | -7/Factory | Lost 3 parts (2n1w) 14303 | -7/Factory | Build established: Scavenger-Tank 15533 | -7/Factory | First assault squad dispatched 15589 | -7/Factory | Identified exit to Garrison 15619 | -7/Factory | Entered Garrison 15824 | -7/Garrison | Triggered checkpoint 15894 | -7/Garrison | Garrison Relay disabled 16049 | -7/Garrison | Triggered checkpoint 16146 | -7/Garrison | Triggered checkpoint 16206 | -7/Garrison | Core integrity fell below 50% 16457 | -7/Garrison | Discovered new exit (range 8) 16504 | -7/Garrison | Expanded RIF knowledge: Watcher Feeds 16863 | -7/Garrison | Entered Factory 16863 | -6/Factory | Accompanied by 12 allies 16863 | -6/Factory | Evolved 2 slots: Propulsion x1, Utility x1 16864 | -6/Factory | Identified exit to Extension 17150 | -6/Factory | Lost 12 allies 17213 | -6/Factory | First assault squad dispatched 17348 | -6/Factory | Build established: Scavenger-Gunner 17558 | -6/Factory | Destroyed 8 combat bots 17782 | -6/Factory | Entered Extension 18137 | -6/Extension | Rescued A7 18268 | -6/Extension | Lost 3 allies 18872 | -6/Extension | Spotted B-75 Beast 18882 | -6/Extension | Allies destroyed B-75 Beast 18906 | -6/Extension | Spotted B-75 Beast 18911 | -6/Extension | Extracted ID and sensor layout for unrecognized location from A7's data core 18926 | -6/Extension | Destroyed B-75 Beast 19144 | -6/Extension | Discovered new exit (range 16) 19146 | -6/Extension | Discovered new exit (range 15) 19187 | -6/Extension | Disrupted transfer network 19193 | -6/Extension | Entered Cetus 19213 | -6/Cetus | Spotted Cetus Guard 19213 | -6/Cetus | Spotted Cetus Guard 19217 | -6/Cetus | Spotted Cetus Guard 19217 | -6/Cetus | Spotted Cetus Guard 19228 | -6/Cetus | Destroyed Cetus Guard 19243 | -6/Cetus | Destroyed Cetus Guard 19243 | -6/Cetus | Destroyed Cetus Guard 19292 | -6/Cetus | Destroyed Cetus Guard 19313 | -6/Cetus | Lost 7 parts (3n2u2w) 19475 | -6/Cetus | Discovered new exit (range 16) 19535 | -6/Cetus | Entered Archives 19556 | -6/Archives | Build established: Scavenger-Mutant 19851 | -6/Archives | Discovered new exit (range 15) 19958 | -6/Archives | Build established: Scavenger-Gunner 19976 | -6/Archives | Discovered new exit (range 14) 20025 | -6/Archives | Discovered new exit (range 16) 20110 | -6/Archives | Entered Hub_04(d) 20110 | -6/Hub_04(d) | Accompanied by 5 allies 20260 | -6/Hub_04(d) | Murdered 5 allies 20423 | -6/Hub_04(d) | Lost 4 parts (1p2n1w) 20475 | -6/Hub_04(d) | Garrison activated, responded to threat 20698 | -6/Hub_04(d) | Identified exit to Garrison 20698 | -6/Hub_04(d) | Entered Garrison 20864 | -6/Garrison | Triggered checkpoint 20928 | -6/Garrison | Garrison Relay disabled 21004 | -6/Garrison | Triggered checkpoint 21044 | -6/Garrison | Discovered new exit (range 8) 21233 | -6/Garrison | Triggered checkpoint 21334 | -6/Garrison | Garrison Relay disabled 21478 | -6/Garrison | Expanded RIF knowledge: Signal Jamming 21634 | -6/Garrison | Rewired B-75 Beast 21642 | -6/Garrison | Destroyed B-90 Cyclops 21890 | -6/Garrison | Triggered checkpoint 22069 | -6/Garrison | Expanded RIF knowledge: Patrol Navigation 22369 | -6/Garrison | Entered Factory 22369 | -5/Factory | Accompanied by 1 ally 22369 | -5/Factory | Evolved 2 slots: Utility x2 22648 | -5/Factory | Destroyed Beast 5a 23333 | -5/Factory | Garrison activated, responded to threat 23354 | -5/Factory | Discovered new exit (range 16) 23490 | -5/Factory | Identified exit to Garrison 23490 | -5/Factory | Entered Garrison 23498 | -5/Garrison | Triggered checkpoint 23584 | -5/Garrison | Triggered checkpoint 23594 | -5/Garrison | Garrison Relay disabled 23782 | -5/Garrison | Triggered checkpoint 23881 | -5/Garrison | Triggered checkpoint 23910 | -5/Garrison | Triggered checkpoint 24081 | -5/Garrison | Destroyed 7 combat bots 24107 | -5/Garrison | Spotted B-75 Beast 24127 | -5/Garrison | Destroyed B-75 Beast 24248 | -5/Garrison | Triggered checkpoint 24270 | -5/Garrison | Build established: Scavenger-Tank 24283 | -5/Garrison | Discovered new exit (range 9) 24632 | -5/Garrison | Expanded RIF knowledge: Zone Cloak 24830 | -5/Garrison | Garrison Relay disabled 24847 | -5/Garrison | Garrison Relay disabled 24912 | -5/Garrison | Discovered new exit (range 12) 24931 | -5/Garrison | Entered Factory 24931 | -4/Factory | Evolved 2 slots: Utility x2 25158 | -4/Factory | Build established: Bothacker-Tank 25802 | -4/Factory | Discovered new exit (range 8) 25934 | -4/Factory | Cargo convoy interrupted 26096 | -4/Factory | Identified exit to Garrison 26096 | -4/Factory | Entered Garrison 26170 | -4/Garrison | Garrison Relay disabled 26305 | -4/Garrison | Heavy support dispatched to Research 26422 | -4/Garrison | Found Relay Coupler [Proto] 26496 | -4/Garrison | Triggered checkpoint 26512 | -4/Garrison | Triggered checkpoint 26590 | -4/Garrison | Build established: Bothacker-Gunner 26604 | -4/Garrison | Spotted B-86 Titan 26622 | -4/Garrison | Destroyed B-86 Titan 26694 | -4/Garrison | Triggered checkpoint 26827 | -4/Garrison | Discovered new exit (range 8) 26842 | -4/Garrison | Heavy support dispatched to Research 26856 | -4/Garrison | Triggered checkpoint 26991 | -4/Garrison | Garrison Relay disabled 27083 | -4/Garrison | Expanded RIF knowledge: Autoassimilate 27137 | -4/Garrison | Entered Research 27137 | -3/Research | Evolved 2 slots: Power x1, Utility x1 27153 | -3/Research | Central database locked down 27360 | -3/Research | Build established: Bothacker-Tank 27656 | -3/Research | Found Prototype Launcher 27656 | -3/Research | Identified Adv. Micro-nuke Launcher 27839 | -3/Research | Garrison activated, responded to threat 28010 | -3/Research | Identified exit to Garrison 28010 | -3/Research | Entered Garrison 28249 | -3/Garrison | Triggered checkpoint 28323 | -3/Garrison | Build established: Scavenger-Gunner 28365 | -3/Garrison | Triggered checkpoint 28406 | -3/Garrison | Triggered checkpoint 28410 | -3/Garrison | Lost 7 allies 28414 | -3/Garrison | Spotted B-86 Titan 28422 | -3/Garrison | Destroyed B-86 Titan 28627 | -3/Garrison | Discovered new exit (range 13) 28634 | -3/Garrison | Spotted B-86 Titan 28634 | -3/Garrison | Spotted B-90 Cyclops 28645 | -3/Garrison | Rewired B-90 Cyclops 28650 | -3/Garrison | Destroyed B-90 Cyclops 28655 | -3/Garrison | Allies destroyed B-86 Titan 28800 | -3/Garrison | Destroyed Cyclops 8a 28842 | -3/Garrison | Heavy support dispatched to Research 28882 | -3/Garrison | Triggered checkpoint 28928 | -3/Garrison | Garrison Relay disabled 28952 | -3/Garrison | Garrison Relay disabled 28980 | -3/Garrison | Expanded RIF knowledge: Alert ID Control 29151 | -3/Garrison | Discovered new exit (range 11) 29198 | -3/Garrison | Triggered checkpoint 29245 | -3/Garrison | Found embedded Infiltrators 29248 | -3/Garrison | Garrison Relay disabled 29260 | -3/Garrison | Heavy support dispatched to Research 29468 | -3/Garrison | Garrison Relay disabled 29491 | -3/Garrison | Found Adv. Powered Armor 29495 | -3/Garrison | Found Adv. Powered Armor 29500 | -3/Garrison | Found Unknown Device 29500 | -3/Garrison | Identified Adv. Force Booster 29509 | -3/Garrison | Found Adv. Powered Armor 29538 | -3/Garrison | Triggered checkpoint 29594 | -3/Garrison | Triggered checkpoint 29650 | -3/Garrison | Triggered checkpoint 29741 | -3/Garrison | Spotted Striker 29763 | -3/Garrison | Destroyed Executioner 29784 | -3/Garrison | Allies destroyed Striker 29798 | -3/Garrison | Found Prototype Processor 29798 | -3/Garrison | Identified Exp. Core Analyzer 29805 | -3/Garrison | Found Exp. Core Analyzer 29810 | -3/Garrison | Found Prototype Device 29810 | -3/Garrison | Identified Adv. Kinecellerator 30021 | -3/Garrison | Entered Research 30021 | -2/Research | Accompanied by 3 allies 30021 | -2/Research | Evolved 2 slots: Utility x2 30606 | -2/Research | Found Prototype Processor 30606 | -2/Research | Identified Exp. Target Analyzer 30610 | -2/Research | Found Exp. Target Analyzer 30921 | -2/Research | P-80 Master assimilated allied Assassin 8b 31018 | -2/Research | Found Prototype Device 31018 | -2/Research | Identified Exp. Shield Generator 31292 | -2/Research | Garrison activated, responded to threat 31356 | -2/Research | Found Prototype Protection 31356 | -2/Research | Identified Centrium Heavy Armor Plating 31521 | -2/Research | First assault squad dispatched 31618 | -2/Research | Identified exit to Garrison 31618 | -2/Research | Entered Garrison 32231 | -2/Garrison | Triggered checkpoint 32271 | -2/Garrison | Spotted B-90 Cyclops 32283 | -2/Garrison | Destroyed B-90 Cyclops 32322 | -2/Garrison | Triggered checkpoint 32438 | -2/Garrison | Triggered checkpoint 32543 | -2/Garrison | Discovered new exit (range 13) 32757 | -2/Garrison | Triggered checkpoint 32919 | -2/Garrison | Discovered new exit (range 11) 32967 | -2/Garrison | Expanded RIF knowledge: Threat Obfuscation 33022 | -2/Garrison | Triggered checkpoint 33063 | -2/Garrison | Garrison Relay disabled 33449 | -2/Garrison | Discovered new exit (range 11) 33586 | -2/Garrison | Triggered checkpoint 33685 | -2/Garrison | Entered Research 34155 | -2/Research | Spotted B-90 Cyclops 34172 | -2/Research | Found Prototype Processor 34172 | -2/Research | Identified Spectral Analyzer 34435 | -2/Research | First assault squad dispatched 34537 | -2/Research | Identified exit to Quarantine 34656 | -2/Research | Found Prototype Processor 34656 | -2/Research | Identified Exp. Terrain Scan Processor 35166 | -2/Research | Entered Quarantine 35167 | -2/Quarantine | Maximum security lockdown engaged 35341 | -2/Quarantine | Spotted Fortress 35367 | -2/Quarantine | Assimilated Fortress with formatsys_high 35389 | -2/Quarantine | Assimilated Heavy ARC 9a with formatsys_deep 35432 | -2/Quarantine | Lost 4 allies 35457 | -2/Quarantine | System corruption reached 10% 35460 | -2/Quarantine | Released all parts (5) 35465 | -2/Quarantine | Core integrity fell below 50% 35479 | -2/Quarantine | Destroyed 14 combat bots 35479 | -2/Quarantine | Spotted Executioner 35479 | -2/Quarantine | Spotted Striker 35481 | -2/Quarantine | Core integrity fell below 20% 35484 | -2/Quarantine | Scanned by Researcher 35484 | -2/Quarantine | Spotted Investigator 35484 | -2/Quarantine | Destroyed by Striker with Compact Linear Accelerator Last Messages --------------- 35484_ ALERT: Encountered unknown unique technology, formulating response. 35484_ Engulfed in stasis bubble. 35484_ L-61 Swordsman engulfed in stasis bubble. 35484_ B-74 Champion engulfed in stasis bubble. 35484_ P-80 Master engulfed in stasis bubble. 35484_ G-73 Enforcer engulfed in stasis bubble. 35484_ E-15 Imp engulfed in stasis bubble. 35484_ Executioner engulfed in stasis bubble. 35484_ B-74 Champion engulfed in stasis bubble. 35484_ Investigator engulfed in stasis bubble. 35484_ G-73 Enforcer engulfed in stasis bubble. 35484_ Striker engulfed in stasis bubble. 35484_ M-36 Artificer engulfed in stasis bubble. 35484_ L-61 Swordsman engulfed in stasis bubble. 35484_ Stasis bubble strength at 194. 35484_ B-74 Champion stasis bubble strength at 170. 35484_ L-61 Swordsman stasis bubble strength at 179. 35484_ E-15 Imp stasis bubble strength at 194. 35484_ Executioner stasis bubble strength at 175. 35484_ P-80 Master stasis bubble strength at 193. Map ----- +----------------------------------------------------+ | | | ?????????????????????????????????????????????????? | | ?????????????????????????????????????????????????? | | ?????????????????????????????????????????????????? | | ?????????????????????????????????????????????????? | | ?????????????????????????????????????????????????? | | ?????????????????????????????????????????????????? | | ?????????????????????????????????????????????????? | | ?????????????????????????????????????????????????? | | ?????????????????????????????????????????????????? | | ?????????????????????????????????????????????????? | | ?????????????????????????????????????????????????? | | ?????????????????????????????????????????????????? | | ?????????????????????????????????????????????????? | | ?????????????????????????????????????????????????# | | ?????????????????????????????????????????????????# | | ????????????????????????????????????????????###### | | ??????????????????????????????????????####### #* | | ?????????????????????????????#########;"# %*%[!/ | | ????????????????????####+##### /[%=%==! | | ????????????????????# g %/ !=*=!*!![ | | ?######?????????????# igl m %!%= = [!====% | | ?# #?????????????# gg"bEK i=%%%[ ==*=%=/!% | | ?# #?????????????# e %p%%g"%"[[%!=" ** =![%*=! | | ?# #?????????????# gb#;;#% " !*![%" [[=!![!![ | | ?# #?????????????# gb@###/###"######## /* | | ?# ############### c l##?###??????????## # | | ?# ^ ^ #????????????????####### | | ?# #??????????????????????## | | ?# """ """ """ #???????????????????????? | | ?# """" """" """" #???????????????????????? | | ## """" """" """" #???????????????????????? | | """^ """ """ #???????????????????????? | | #???????????????????????? | | = """ """ """ #???????????????????????? | | """" """" """" #???????????????????????? | | ####### """" """" """" ###?????????????????????? | | ??????# """ """ """ ""#?????????????????????? | | ??????# ""#?????????????????????? | | ??????#! """ T"#?????????????????????? | | ??????# """" ""#?????????????????????? | | ???#### """" ""#?????????????????????? | | ???+ """ ! ![ #???????????????????????? | | ?????## ![ #???????????????????????? | | ??????# [ #???????????????????????? | | ??????# ###########+#+#???????????????????????? | | ??????# #?? #??????????????????????????????? | | ??????# # #??????????????????????????????? | | ??????# + "" #??????????????????????????????? | | ??????# # "" #??????????????????????????????? | +----------------------------------------------------+ Best States ------------- Heat Dissipation 111 Energy Generation 57 Energy Capacity 440 Matter Stores 300 Matter Capacity 300 Sight Range 18 Terrain Scan Density 10 Power Amplification 30 EM Shielding 3 Armor Coverage 2000 Resistance: TH 15 Weapon Cycling 30 Evasion (%) 63 Targeting Accuracy 8 Target Analysis 10 Core Analysis 11 Recoil Reduction 4 Matter Filtering 30 Kinecelleration 50 Offensive Hacking 12 Defensive Hacking 12 Relay Coupler Types 2 Relay Coupler Value 56 Item Schematics ----------------- None Robot Schematics ------------------ None Fabricated ------------ Nothing Repaired ---------- Nothing Studied --------- KE Penetrator | -3/Research | Hacked Alien Tech Used ----------------- None Achievements -------------- Powerful Protocols Challenges ------------ None Game ------ Seed DispersionForceFlail Manual? 0 Play Time 03:37:42 Cumulative 337.0 hours Start 2026.03.09 @ 18:49:36 End 2026.03.09 @ 22:38:01 Sessions 1 Manual Loads 0 Difficulty Rogue Special Mode None Game No. 268 Rogue 268 Adventurer 0 Explorer 0 Win Type - Total 19 Types 10/0/7/2/0/0/0/0/0/0 Lore% 85 Gallery% 76 Achievement% 64 Wizard Run 0 Options --------- Layout 1 ASCII 0 Keyboard 0 Movement Numpad Keybinds 0 Fullscreen 1 Font 32/SmallcapsGlow Map View 77x35 Zoom Use 0% Tactical HUD 1 Map Filters NONE Filters NONE Steam 1 RUN: 99a2576c-9d93-4f3d-96d4-b67d330b83f2